bitfinex/quotes_BTCUSD_20240803
["timestamp","ask_amount","ask_price","bid_price","bid_amount"]
[1722698856835,1.29123297,61830.0,61829.0,0.0071]
[1722698856999,1.30223297,61830.0,61829.0,0.0071]
[1722698858069,1.46396597,61830.0,61829.0,0.0071]
[1722698858282,1.80643297,61830.0,61829.0,0.0061]
[1722698858444,1.46296597,61830.0,61829.0,0.0061]
[1722698858646,1.31223297,61830.0,61829.0,0.0071]
[1722698859049,1.29124095,61830.0,61829.0,0.0061]
[1722698859402,1.14478171,61830.0,61829.0,0.0071]
[1722698859663,1.44478171,61830.0,61829.0,0.0071]
[1722698859877,1.43378171,61830.0,61829.0,0.0061]
[1722698860094,1.92898171,61830.0,61829.0,0.0061]
[1722698860298,1.92898171,61830.0,61829.0,0.0071]
[1722698860299,1.61651471,61830.0,61829.0,0.0071]
[1722698860486,1.79397395,61830.0,61829.0,0.0071]
[1722698860805,1.77397395,61830.0,61829.0,0.0071]
[1722698861013,1.79397395,61830.0,61829.0,0.0071]
[1722698861212,1.77284095,61830.0,61829.0,0.0071]
[1722698861412,1.93457395,61830.0,61829.0,0.0071]
[1722698861614,1.92357395,61830.0,61829.0,0.0061]
[1722698861815,2.57050795,61830.0,61829.0,0.0061]
[1722698862025,2.90497495,61830.0,61829.0,0.0071]
[1722698862233,2.58150795,61830.0,61829.0,0.0071]
[1722698862375,2.57050795,61830.0,61829.0,0.0061]
[1722698862728,2.58154274,61830.0,61829.0,0.0071]
[1722698862945,2.24522624,61830.0,61829.0,0.0071]
[1722698864647,1.15901568,61830.0,61829.0,0.0071]
[1722698864849,1.1085,61830.0,61829.0,0.0071]
[1722698865049,1.14482267,61830.0,61829.0,0.0071]
[1722698866934,1.15482267,61830.0,61829.0,0.0071]
[1722698867173,1.20965467,61830.0,61829.0,0.0071]
[1722698870030,1.21059271,61830.0,61829.0,0.0071]
[1722698870320,1.20965467,61830.0,61829.0,0.0071]
[1722698871276,1.00783486,61830.0,61829.0,0.0071]
[1722698871479,1.20958916,61830.0,61829.0,0.0071]
[1722698873487,1.7205154,61830.0,61829.0,0.0071]
[1722698873699,2.0228484,61830.0,61829.0,0.0071]
[1722698874497,1.6793814,61830.0,61829.0,0.0071]
[1722698874697,1.5176484,61830.0,61829.0,0.0071]
[1722698874971,1.51768479,61830.0,61829.0,0.0071]
[1722698875156,1.50768479,61830.0,61829.0,0.0071]
[1722698875360,1.20962555,61830.0,61829.0,0.0071]
[1722698877701,1.20962555,61830.0,61829.0,0.001]
[1722698878109,1.06393371,61830.0,61829.0,0.001]
[1722698878329,1.20958163,61830.0,61829.0,0.001]
[1722698878744,1.06391613,61830.0,61829.0,0.001]
[1722698879742,0.81971613,61830.0,61829.0,0.001]
[1722698880148,0.96537944,61830.0,61829.0,0.001]
[1722698880757,0.81970631,61830.0,61829.0,0.001]
[1722698880955,0.80870631,61830.0,61818.0,0.419764]
[1722698881166,0.29056755,61829.0,61818.0,0.419764]
[1722698881366,0.03,61819.0,61818.0,0.1705]
[1722698881770,0.03,61819.0,61818.0,0.332265]
[1722698882375,0.03,61819.0,61818.0,0.81325424]
[1722698882376,0.14449583,61819.0,61818.0,0.81325424]
[1722698882620,0.14449583,61819.0,61818.0,1.15978424]
[1722698883144,0.16449583,61819.0,61818.0,0.83625424]
[1722698883643,0.16449583,61819.0,61818.0,0.51272424]
[1722698883818,0.16449583,61819.0,61818.0,0.52178937]
[1722698884053,0.16549583,61819.0,61818.0,0.52878937]
[1722698884499,0.16449583,61819.0,61818.0,0.52178937]
[1722698884863,0.16549583,61819.0,61818.0,0.85531937]
[1722698885067,0.16549583,61819.0,61818.0,0.18956513]
[1722698887803,0.031,61819.0,61818.0,0.01906513]
[1722698888012,0.16549704,61819.0,61818.0,0.01906513]
[1722698888426,0.16549704,61819.0,61818.0,0.35133013]
[1722698888625,0.16549704,61819.0,61818.0,0.18956513]
[1722698889607,0.16549704,61819.0,61818.0,0.35133013]
[1722698889810,0.16549704,61819.0,61818.0,0.18956513]
[1722698890185,0.16549704,61819.0,61818.0,0.35133013]
[1722698890593,0.16549704,61819.0,61818.0,0.67486013]
[1722698890789,0.14549704,61819.0,61818.0,0.67486013]
[1722698890967,0.14549704,61819.0,61818.0,1.50237937]
[1722698890968,0.13549704,61819.0,61818.0,1.50237937]
[1722698891204,0.616,61826.0,61825.0,0.808732]
[1722698891407,0.75047577,61826.0,61825.0,1.62378424]
[1722698891644,0.01,61828.0,61825.0,1.63278357]
[1722698891808,0.01,61828.0,61827.0,1.30269]
[1722698892011,0.01,61832.0,61827.0,0.65144224]
[1722698892219,0.55126358,61841.0,61832.0,0.1705]
[1722698892220,0.01,61833.0,61832.0,0.1705]
[1722698892514,0.616,61841.0,61828.0,0.24819339]
[1722698892515,4.20371,61829.0,61828.0,1.323795]
[1722698892721,4.20371,61829.0,61828.0,1.647273]
[1722698892922,4.21371,61829.0,61828.0,1.41675424]
[1722698893131,4.20371,61829.0,61828.0,1.41675424]
[1722698893752,4.21371,61829.0,61828.0,1.41675424]
[1722698893958,4.20371,61829.0,61828.0,1.41675424]
[1722698894165,4.20371,61829.0,61828.0,1.74023224]
[1722698894580,4.20371,61829.0,61828.0,2.06371024]
[1722698894797,4.20371,61829.0,61828.0,1.74023224]
[1722698894997,4.20371,61829.0,61828.0,1.75423224]
[1722698895173,4.20371,61829.0,61828.0,1.79638559]
[1722698895408,4.20371,61829.0,61828.0,1.78238559]
[1722698895784,4.20371,61829.0,61828.0,1.79638559]
[1722698898838,4.20371,61829.0,61828.0,1.80535752]
[1722698901581,4.20371,61829.0,61828.0,1.90535752]
[1722698903212,4.20371,61829.0,61828.0,1.90627052]
[1722698903926,4.19104273,61829.0,61828.0,1.90627052]
[1722698905504,4.08046891,61829.0,61828.0,1.99377052]
[1722698906271,4.05139891,61829.0,61828.0,2.31724852]
[1722698910536,4.05139891,61829.0,61828.0,1.99377052]
[1722698911940,3.81438924,61829.0,61828.0,2.31724852]
[1722698912080,3.81438924,61829.0,61828.0,3.25832476]
[1722698912276,3.75558924,61829.0,61828.0,3.25832476]
[1722698912923,3.63658924,61829.0,61828.0,3.24432476]
[1722698913141,3.63658924,61829.0,61828.0,3.56780276]
[1722698913343,3.63658924,61829.0,61828.0,3.58180276]
[1722698913589,3.57458924,61829.0,61828.0,3.58180276]
[1722698915611,2.0125232,61829.0,61828.0,3.90528076]
[1722698915815,1.59051457,61829.0,61828.0,3.90528076]
[1722698916015,1.59051457,61829.0,61828.0,3.58180276]
[1722698916139,1.53432221,61829.0,61828.0,3.58180276]
[1722698916343,1.53432221,61829.0,61828.0,3.56780276]
[1722698916344,1.4467717,61829.0,61828.0,3.56780276]
[1722698916546,1.39813884,61829.0,61828.0,3.56780276]
[1722698916791,1.34950598,61829.0,61828.0,3.56780276]
[1722698916935,1.30087312,61829.0,61828.0,3.56780276]
[1722698917136,1.16581424,61829.0,61828.0,3.89128076]
[1722698917381,1.11718138,61829.0,61828.0,3.89128076]
[1722698917582,1.06856193,61829.0,61828.0,3.89128076]
[1722698917838,1.01994248,61829.0,61828.0,3.56780276]
[1722698917976,1.01994248,61829.0,61828.0,3.24432476]
[1722698918191,1.01994248,61829.0,61828.0,3.25832476]
[1722698918594,1.01994248,61829.0,61828.0,3.58180276]
[1722698918921,1.01994248,61829.0,61828.0,3.57390276]
[1722698919149,1.01994248,61829.0,61828.0,3.58790276]
[1722698919698,1.01994248,61829.0,61828.0,3.22742476]
[1722698919914,1.01994248,61829.0,61828.0,3.24142476]
[1722698921371,1.01994248,61829.0,61828.0,3.05392476]
[1722698921616,1.01994248,61829.0,61828.0,2.14986876]
[1722698921839,1.01994248,61829.0,61828.0,2.11743876]
[1722698922042,1.02994248,61829.0,61828.0,2.11743876]
[1722698922627,1.02994248,61829.0,61828.0,2.10343876]
[1722698922828,1.02994248,61829.0,61828.0,2.11743876]
[1722698923385,1.02994248,61829.0,61828.0,2.10343876]
[1722698923590,1.02994248,61829.0,61828.0,2.22643876]
[1722698923740,1.02994248,61829.0,61828.0,2.54991676]
[1722698923961,1.01994248,61829.0,61828.0,2.25886876]
[1722698924168,1.01994248,61829.0,61828.0,1.64127052]
[1722698924805,1.01994248,61829.0,61828.0,1.65527052]
[1722698925206,1.01994248,61829.0,61828.0,1.64127052]
[1722698925617,1.01994248,61829.0,61828.0,1.65527052]
[1722698926510,1.01994248,61829.0,61828.0,1.64127052]
[1722698928097,1.01994248,61829.0,61828.0,1.65527052]
[1722698928491,1.01994248,61829.0,61828.0,1.64127052]
[1722698928695,1.02994248,61829.0,61828.0,1.64127052]
[1722698928892,1.02994248,61829.0,61828.0,1.65527052]
[1722698929315,1.02994248,61829.0,61828.0,1.64127052]
[1722698929801,1.02994248,61829.0,61828.0,1.65527052]
[1722698931783,1.02994248,61829.0,61828.0,1.64127052]
[1722698932261,1.02994248,61829.0,61828.0,1.65527052]
[1722698932766,1.02994248,61829.0,61828.0,1.64127052]
[1722698933176,1.02994248,61829.0,61828.0,1.65527052]
[1722698934369,0.00083,61830.0,61829.0,0.679374]
[1722698934575,0.00083,61830.0,61829.0,1.19206924]
[1722698934753,0.00083,61830.0,61829.0,1.52491458]
[1722698935507,0.01083,61830.0,61829.0,1.52491458]
[1722698935702,0.01083,61830.0,61829.0,1.53891458]
[1722698938862,0.00083,61830.0,61829.0,1.53891458]
[1722698939527,0.00083,61830.0,61829.0,1.18795534]
[1722698939730,0.00083,61830.0,61829.0,0.02337334]
[1722698939731,0.62173,61830.0,61829.0,0.02337334]
[1722698939938,0.62373,61830.0,61829.0,0.02576158]
[1722698940373,0.62373,61830.0,61829.0,0.01638824]
[1722698940573,0.62373,61830.0,61829.0,0.014]
[1722698940574,0.76820604,61830.0,61829.0,0.014]
[1722698940778,0.75820604,61830.0,61829.0,0.014]
[1722698941354,0.032,61818.0,61814.0,0.94107624]
[1722698941610,0.032,61818.0,61796.0,0.01001]
[1722698941611,0.2733,61804.0,61803.0,0.161804]
[1722698941818,0.2733,61804.0,61801.0,0.01001]
[1722698941819,0.032,61802.0,61801.0,0.01001]
[1722698942021,0.7554372,61802.0,61801.0,0.01001]
[1722698942172,0.75744711,61802.0,61801.0,0.01001]
[1722698942368,0.6209,61802.0,61801.0,0.01001]
[1722698942574,0.75745199,61802.0,61801.0,0.01001]
[1722698942778,0.757451,61802.0,61801.0,0.01001]
[1722698943157,0.6229,61802.0,61801.0,0.01001]
[1722698943337,0.76745706,61802.0,61801.0,0.01001]
[1722698943538,0.75745706,61802.0,61801.0,0.01001]
[1722698944017,0.6329,61802.0,61801.0,0.01001]
[1722698945124,0.6419,61802.0,61801.0,0.01101]
[1722698945338,0.77645863,61802.0,61801.0,0.01101]
[1722698945552,0.76745863,61802.0,61801.0,0.01001]
[1722698945766,1.00495863,61802.0,61801.0,0.01001]
[1722698945976,1.65683887,61802.0,61801.0,0.01101]
[1722698946185,0.332,61799.0,61796.0,0.01001]
[1722698946392,0.79156,61797.0,61796.0,0.01001]
[1722698946595,1.1509274,61797.0,61796.0,0.01001]
[1722698946838,1.3127474,61797.0,61796.0,0.01001]
[1722698947026,1.1509274,61797.0,61796.0,0.01001]
[1722698947229,1.6363874,61797.0,61796.0,0.01001]
[1722698947433,1.1509274,61797.0,61796.0,0.01001]
[1722698947789,0.13,61794.0,61791.0,0.0139162]
[1722698947989,4.0179274,61794.0,61791.0,0.0139162]
[1722698948225,4.1797554,61794.0,61791.0,0.0139162]
[1722698949124,3.87335924,61794.0,61791.0,0.0139162]
[1722698949336,4.02194668,61794.0,61793.0,0.12613579]
[1722698949740,4.00794087,61794.0,61793.0,0.12513579]
[1722698949915,4.00794087,61794.0,61793.0,0.12613579]
[1722698950117,3.72388163,61794.0,61793.0,0.12613579]
[1722698950319,3.5893,61794.0,61793.0,0.12613579]
[1722698950743,3.5893,61794.0,61788.0,0.14999999]
[1722698950744,0.332,61789.0,61788.0,0.14999999]
[1722698950943,0.647538,61787.0,61786.0,0.01001]
[1722698951120,2.34636842,61787.0,61786.0,0.01001]
[1722698951344,2.31636842,61787.0,61786.0,0.01001]
[1722698951543,2.31794281,61787.0,61786.0,0.01001]
[1722698951806,2.16048357,61787.0,61786.0,0.01001]
[1722698952320,2.17048357,61787.0,61786.0,0.01001]
[1722698952521,2.16048357,61787.0,61786.0,0.01001]
[1722698952652,2.17290918,61787.0,61786.0,0.01101]
[1722698952854,2.18290918,61787.0,61786.0,0.01101]
[1722698953194,2.15890918,61787.0,61786.0,0.01001]
[1722698953643,2.16890918,61787.0,61786.0,0.01001]
[1722698954536,2.50821442,61787.0,61786.0,0.01001]
[1722698954680,3.15559842,61787.0,61786.0,0.01001]
[1722698955067,3.16559842,61787.0,61786.0,0.01001]
[1722698955268,0.85127,61784.0,61780.0,0.01001]
[1722698955491,2.16334642,61784.0,61780.0,0.01001]
[1722698955696,1.495013,61782.0,61780.0,0.01001]
[1722698955897,3.60840346,61782.0,61780.0,0.01001]
[1722698956101,1.607269,61779.0,61778.0,0.16000999]
[1722698956301,5.95415936,61779.0,61778.0,0.16000999]
[1722698956764,1.403932,61775.0,61773.0,0.14999999]
[1722698956962,4.05861903,61775.0,61773.0,0.14999999]
[1722698957794,4.07861903,61775.0,61773.0,0.14999999]
[1722698957985,3.80295666,61775.0,61773.0,0.14999999]
[1722698958192,4.8954426,61775.0,61773.0,0.14999999]
[1722698958398,4.8954426,61775.0,61771.0,0.012423]
[1722698958399,1.536327,61772.0,61771.0,0.012423]
[1722698958623,1.536327,61772.0,61760.0,0.00019]
[1722698958624,0.871467,61769.0,61760.0,0.00019]
[1722698958869,0.871467,61769.0,61768.0,0.14991696]
[1722698958870,3.91238175,61769.0,61768.0,0.14991696]
[1722698959537,5.10090514,61769.0,61768.0,0.14991696]
[1722698959944,5.10090514,61769.0,61760.0,0.00019]
[1722698959945,1.17148,61768.0,61760.0,0.00019]
[1722698960143,3.26499576,61768.0,61760.0,0.00019]
[1722698960348,3.30684034,61768.0,61760.0,0.00019]
[1722698960720,3.30684034,61768.0,61763.0,0.14464199]
[1722698960721,0.162,61764.0,61763.0,0.14464199]
[1722698960926,5.24576086,61764.0,61763.0,0.14464199]
[1722698961128,5.35512747,61764.0,61763.0,0.14464199]
[1722698961526,5.4032201,61764.0,61763.0,0.14464199]
[1722698961736,5.4132201,61764.0,61763.0,0.14464199]
[1722698961960,5.4132201,61764.0,61763.0,0.1253291]
[1722698962166,5.4332201,61764.0,61763.0,0.1253291]
[1722698962364,5.6635201,61764.0,61763.0,0.1253291]
[1722698962511,5.6835201,61764.0,61763.0,0.1253291]
[1722698962708,5.34688577,61764.0,61763.0,0.1253291]
[1722698962913,5.35352444,61764.0,61763.0,0.1253291]
[1722698963117,5.61543181,61764.0,61763.0,0.1253291]
[1722698963335,7.28015081,61764.0,61763.0,0.1253291]
[1722698963524,6.84402444,61764.0,61763.0,0.1253291]
[1722698963730,7.00593044,61764.0,61763.0,0.1253291]
[1722698963931,7.32974344,61764.0,61763.0,0.1253291]
[1722698964148,6.99593044,61764.0,61763.0,0.1253291]
[1722698964389,6.99593044,61764.0,61760.0,0.00019]
[1722698964390,0.221914,61761.0,61760.0,0.00019]
[1722698964621,0.221914,61761.0,61750.0,0.001]
[1722698964622,1.116358,61759.0,61750.0,0.001]
[1722698964841,2.46904854,61759.0,61750.0,0.001]
[1722698965274,2.09561691,61759.0,61750.0,0.001]
[1722698965474,1.93369791,61759.0,61750.0,0.001]
[1722698965682,2.74329491,61759.0,61750.0,0.001]
[1722698965899,2.89399131,61759.0,61750.0,0.001]
[1722698966111,0.06,61754.0,61750.0,0.001]
[1722698966304,0.06,61754.0,61743.0,0.14999999]
[1722698966305,0.462,61744.0,61743.0,0.14999999]
[1722698966530,8.37292331,61744.0,61743.0,0.14999999]
[1722698966703,8.79684131,61744.0,61743.0,0.14999999]
[1722698966965,9.17035194,61744.0,61743.0,0.14999999]
[1722698967137,9.3743877,61744.0,61743.0,0.14999999]
[1722698967346,9.3743877,61744.0,61717.0,0.14999999]
[1722698967347,0.042,61721.0,61717.0,0.14999999]
[1722698967703,0.042,61721.0,61720.0,0.01120026]
[1722698967704,9.20307317,61721.0,61720.0,0.01120026]
[1722698967913,9.63307317,61721.0,61720.0,0.0001]
[1722698968114,9.86004217,61721.0,61720.0,0.0001]
[1722698968319,10.69141817,61721.0,61720.0,0.0001]
[1722698968466,11.28165617,61721.0,61720.0,2.305e-05]
[1722698968671,10.95761817,61721.0,61720.0,2.305e-05]
[1722698968826,10.63541641,61721.0,61720.0,2.305e-05]
[1722698969038,10.03321247,61721.0,61720.0,2.305e-05]
[1722698969244,10.28681865,61721.0,61720.0,2.305e-05]
[1722698969458,9.95410705,61721.0,61720.0,2.305e-05]
[1722698969697,10.48300412,61721.0,61720.0,2.305e-05]
[1722698969905,10.28698512,61721.0,61720.0,2.305e-05]
[1722698970309,10.32098512,61721.0,61720.0,2.305e-05]
[1722698970509,10.80704212,61721.0,61720.0,2.305e-05]
[1722698970657,11.13108012,61721.0,61720.0,2.305e-05]
[1722698971609,11.28843529,61721.0,61720.0,2.305e-05]
[1722698971745,11.27443529,61721.0,61720.0,2.305e-05]
[1722698971927,10.00098512,61721.0,61720.0,2.305e-05]
[1722698972135,9.72478512,61721.0,61720.0,2.305e-05]
[1722698972554,9.52748512,61721.0,61720.0,2.305e-05]
[1722698972735,8.38248512,61721.0,61720.0,2.305e-05]
[1722698972936,8.23899428,61721.0,61720.0,2.305e-05]
[1722698973145,8.53899428,61721.0,61720.0,2.305e-05]
[1722698973352,7.88814781,61721.0,61720.0,2.305e-05]
[1722698973549,8.23899913,61721.0,61720.0,2.305e-05]
[1722698973756,0.032,61718.0,61717.0,0.14999999]
[1722698974003,0.36885132,61718.0,61717.0,0.14999999]
[1722698974324,0.46885132,61718.0,61717.0,0.14999999]
[1722698974595,0.62631056,61718.0,61717.0,0.14999999]
[1722698975214,0.65631056,61718.0,61717.0,0.14999999]
[1722698975432,4.00469097,61718.0,61717.0,0.14999999]
[1722698975843,3.99069097,61718.0,61717.0,0.14999999]
[1722698976258,4.32874497,61718.0,61717.0,0.14999999]
[1722698976461,4.32874497,61718.0,61712.0,0.14999999]
[1722698976462,0.062,61708.0,61707.0,0.14999999]
[1722698976676,8.05429797,61708.0,61707.0,0.14499999]
[1722698976882,8.05429797,61708.0,61707.0,0.15631795]
[1722698976883,8.47840497,61708.0,61707.0,0.15631795]
[1722698977084,8.47840497,61708.0,61707.0,0.14499999]
[1722698977315,9.41535979,61708.0,61707.0,0.14499999]
[1722698977514,11.89378052,61708.0,61707.0,0.14499999]
[1722698977652,1.050677,61693.0,61687.0,0.14999999]
[1722698977855,12.41168603,61693.0,61687.0,0.14999999]
[1722698978052,12.4629025,61693.0,61692.0,0.16146197]
[1722698978254,13.2517182,61693.0,61692.0,0.14999999]
[1722698978461,13.95130467,61693.0,61692.0,0.14999999]
[1722698978664,13.91380467,61693.0,61692.0,0.14999999]
[1722698978859,1.194668,61692.0,61687.0,0.14999999]
[1722698979069,0.224106,61688.0,61687.0,0.14999999]
[1722698979268,2.0097914,61688.0,61687.0,0.14999999]
[1722698979516,2.0636992,61688.0,61687.0,0.14999999]
[1722698979730,2.06395349,61688.0,61687.0,0.14999999]
[1722698979941,2.36925349,61688.0,61687.0,0.14999999]
[1722698980148,1.88477173,61688.0,61687.0,0.14999999]
[1722698980361,1.51460889,61688.0,61687.0,0.14999999]
[1722698980567,1.67671489,61688.0,61687.0,0.14999999]
[1722698980773,1.49460889,61688.0,61687.0,0.14999999]
[1722698981246,1.44070109,61688.0,61687.0,0.14999999]
[1722698981861,0.95770109,61688.0,61687.0,0.14999999]
[1722698982330,0.48494185,61688.0,61687.0,0.14999999]
[1722698982531,0.95770109,61688.0,61687.0,0.14999999]
[1722698982945,0.94770109,61688.0,61687.0,0.14999999]
[1722698983150,0.371,61689.0,61688.0,0.162106]
[1722698983353,0.02,61719.0,61701.0,0.324139]
[1722698983559,0.002,61728.0,61713.0,0.07875194]
[1722698983560,0.12,61715.0,61713.0,0.07875194]
[1722698983764,2.54250516,61688.0,61687.0,0.31210799]
[1722698983965,2.56905221,61688.0,61687.0,1.31744403]
[1722698984167,2.36694398,61688.0,61687.0,1.66061678]
[1722698984377,2.42281745,61688.0,61687.0,1.3170725]
[1722698984582,2.56906337,61688.0,61687.0,2.14564874]
[1722698984788,2.56906186,61688.0,61687.0,1.64503174]
[1722698984997,2.56906186,61688.0,61687.0,1.32081474]
[1722698985199,2.23220516,61688.0,61687.0,1.64503174]
[1722698985554,2.24620516,61688.0,61687.0,1.64603174]
[1722698985984,2.25620516,61688.0,61687.0,0.3454215]
[1722698986185,2.24220516,61688.0,61687.0,0.3444215]
[1722698986387,2.23220516,61688.0,61687.0,1.14100123]
[1722698986542,2.23320516,61688.0,61687.0,1.80343523]
[1722698986747,2.23320516,61688.0,61687.0,1.92456807]
[1722698986943,2.43533667,61688.0,61687.0,1.92456807]
[1722698987175,2.23320516,61688.0,61687.0,2.12749807]
[1722698987396,2.23320516,61688.0,61687.0,2.09506807]
[1722698987599,2.23320516,61688.0,61687.0,1.77085107]
[1722698988218,2.23220516,61688.0,61687.0,1.75685107]
[1722698988394,2.56909103,61688.0,61687.0,1.75685107]
[1722698988658,2.57009103,61688.0,61687.0,1.76985107]
[1722698988836,2.58009103,61688.0,61687.0,1.11767483]
[1722698989036,2.60009103,61688.0,61687.0,0.79345783]
[1722698989240,2.37695951,61688.0,61687.0,0.78045783]
[1722698989571,2.59911986,61688.0,61687.0,0.79445783]
[1722698989786,2.59911986,61688.0,61687.0,0.17393283]
[1722698989972,2.59911986,61688.0,61687.0,0.15993283]
[1722698990177,2.24220516,61688.0,61687.0,0.48414983]
[1722698990316,2.57916277,61688.0,61687.0,0.65032499]
[1722698990522,2.57916277,61688.0,61687.0,0.98447483]
[1722698991236,2.57916277,61688.0,61687.0,1.31243407]
[1722698991237,2.23220516,61688.0,61687.0,1.31243407]
[1722698991563,2.23220516,61688.0,61687.0,1.65965107]
[1722698991718,2.23220516,61688.0,61687.0,1.64565107]
[1722698991918,2.23320516,61688.0,61687.0,1.16293407]
[1722698992120,2.24320516,61688.0,61687.0,0.17193283]
[1722698992348,2.24320516,61688.0,61687.0,0.32410799]
[1722698992554,2.26220516,61688.0,61687.0,0.64625783]
[1722698992759,2.39796782,61688.0,61687.0,0.65825783]
[1722698992954,2.26320516,61688.0,61687.0,0.65825783]
[1722698993169,2.56914822,61688.0,61687.0,0.64625783]
[1722698993458,2.59914822,61688.0,61687.0,0.15993283]
[1722698993681,2.60014822,61688.0,61687.0,0.16793283]
[1722698993887,2.58014822,61688.0,61687.0,0.64432499]
[1722698994017,2.58014822,61688.0,61687.0,0.97847483]
[1722698994220,2.60014822,61688.0,61687.0,0.65425783]
[1722698994413,2.60014822,61688.0,61687.0,0.16793283]
[1722698995091,2.59914822,61688.0,61687.0,0.14999999]
[1722698995270,2.60014822,61688.0,61687.0,0.15999999]
[1722698995679,2.60014822,61688.0,61687.0,0.16993283]
[1722698995880,2.59914822,61688.0,61687.0,0.14999999]
[1722698996055,2.59914822,61688.0,61687.0,0.15993283]
[1722698996255,2.59914822,61688.0,61687.0,0.16093283]
[1722698996434,2.59914822,61688.0,61687.0,0.15099999]
[1722698996636,2.59914822,61688.0,61687.0,0.14999999]
[1722698997159,2.59914822,61688.0,61687.0,0.15993283]
[1722698997361,2.59914822,61688.0,61687.0,0.14999999]
[1722698997362,2.26420516,61688.0,61687.0,0.14999999]
[1722698997614,2.59917936,61688.0,61687.0,0.14999999]
[1722698998356,2.59917936,61688.0,61687.0,0.32606233]
[1722698998566,2.59917936,61688.0,61687.0,0.31610799]
[1722698998768,2.57917936,61688.0,61687.0,0.65027933]
[1722698998941,2.59917936,61688.0,61687.0,0.32206233]
[1722698999173,2.57917936,61688.0,61687.0,0.64927933]
[1722698999379,2.58917936,61688.0,61687.0,0.63932499]
[1722698999583,2.57917936,61688.0,61687.0,0.64927933]
[1722698999782,2.57917936,61688.0,61687.0,0.64627933]
[1722698999947,2.59917936,61688.0,61687.0,0.65119233]
[1722699000125,2.58000936,61688.0,61687.0,0.65119233]
[1722699000604,2.56992685,61688.0,61687.0,0.97540933]
[1722699000823,2.23295265,61688.0,61687.0,1.65058557]
[1722699001027,2.5698778,61688.0,61687.0,1.65058557]
[1722699001448,2.5698778,61688.0,61687.0,1.64658557]
[1722699001659,2.42358761,61688.0,61687.0,1.75778557]
[1722699001899,2.42458867,61688.0,61687.0,2.09100257]
[1722699002109,2.42458867,61688.0,61687.0,2.12343257]
[1722699002110,2.36872271,61688.0,61687.0,2.12343257]
[1722699002583,2.36872271,61688.0,61687.0,2.11443257]
[1722699002584,2.36772271,61688.0,61687.0,2.11443257]
[1722699002790,2.36872271,61688.0,61687.0,2.12643257]
[1722699003200,2.36872271,61688.0,61687.0,2.11443257]
[1722699003406,2.36772271,61688.0,61687.0,1.79021557]
[1722699003828,2.36772271,61688.0,61687.0,1.79030557]
[1722699004052,2.36772271,61688.0,61687.0,2.08200257]
[1722699004682,2.36872271,61688.0,61687.0,2.49045332]
[1722699004884,2.36872271,61688.0,61687.0,2.12652257]
[1722699005130,2.36872271,61688.0,61687.0,2.22283094]
[1722699005344,2.36872271,61688.0,61687.0,2.12652257]
[1722699005752,2.23395265,61688.0,61687.0,2.12652257]
[1722699005953,2.23295265,61688.0,61687.0,2.11452257]
[1722699006157,2.23295265,61688.0,61687.0,2.12652257]
[1722699006158,2.23395265,61688.0,61687.0,2.12652257]
[1722699006594,2.23395265,61688.0,61687.0,2.11452257]
[1722699006809,2.23295265,61688.0,61687.0,1.33188857]
[1722699007018,2.37770607,61688.0,61687.0,1.33188857]
[1722699007236,2.37770607,61688.0,61687.0,0.67971233]
[1722699007458,2.37270607,61688.0,61687.0,0.67971233]
[1722699007692,2.36270607,61688.0,61687.0,1.48560557]
[1722699007913,2.36270607,61688.0,61687.0,1.85803829]
[1722699008125,2.22895265,61688.0,61687.0,1.87003829]
[1722699008327,2.22895265,61688.0,61687.0,1.82182257]
[1722699008531,2.22795265,61688.0,61687.0,1.80982257]
[1722699008736,2.22795265,61688.0,61687.0,1.56992909]
[1722699008949,2.22895265,61688.0,61687.0,1.69110557]
[1722699009166,2.22895265,61688.0,61687.0,2.01532257]
[1722699009378,2.22795265,61688.0,61687.0,2.11452257]
[1722699009582,2.22895265,61688.0,61687.0,2.22652257]
[1722699009784,2.22895265,61688.0,61687.0,2.55073957]
[1722699009987,2.22895265,61688.0,61687.0,2.22652257]
[1722699010401,2.22895265,61688.0,61687.0,2.55073957]
[1722699011022,0.00183,61688.0,61687.0,1.63883516]
[1722699011225,0.00083,61688.0,61687.0,1.84185516]
[1722699011436,0.00183,61688.0,61687.0,1.85385516]
[1722699011647,0.00183,61688.0,61687.0,1.96036447]
[1722699011848,0.00183,61688.0,61687.0,1.86356754]
[1722699012052,0.00083,61688.0,61687.0,1.85156754]
[1722699012255,0.00183,61688.0,61687.0,1.86356754]
[1722699012465,0.00183,61688.0,61687.0,1.92645769]
[1722699012672,0.00183,61688.0,61687.0,1.85385516]
[1722699012854,0.00083,61688.0,61687.0,1.84185516]
[1722699013115,0.00183,61688.0,61687.0,1.85385516]
[1722699013338,0.00183,61688.0,61687.0,1.92647837]
[1722699013559,0.00183,61688.0,61687.0,1.85385516]
[1722699014240,0.00183,61688.0,61687.0,2.86754631]
[1722699014473,0.3174,61708.0,61707.0,0.81028]
[1722699014670,0.13472322,61708.0,61707.0,0.662568]
[1722699014891,0.3274,61716.0,61715.0,0.32407]
[1722699015116,0.14470293,61716.0,61715.0,0.810175]
[1722699015338,0.13470293,61716.0,61715.0,1.134245]
[1722699015510,0.13470286,61717.0,61711.0,0.03252]
[1722699015749,0.01,61719.0,61711.0,0.03252]
[1722699015750,0.01,61720.0,61718.0,0.162027]
[1722699015961,0.01,61721.0,61720.0,0.486066]
[1722699016162,0.1,61727.0,61720.0,0.486066]
[1722699016163,0.02,61722.0,61721.0,0.810095]
[1722699016405,0.16469846,61722.0,61721.0,0.486057]
[1722699016615,0.16469846,61722.0,61721.0,0.49676294]
[1722699016616,0.02,61722.0,61721.0,0.49676294]
[1722699016833,0.01,61722.0,61721.0,1.14483894]
[1722699017069,0.2564,61731.0,61725.0,0.486025]
[1722699017070,0.03,61726.0,61725.0,0.486025]
[1722699017286,0.03,61726.0,61721.0,0.01070594]
[1722699017287,0.2864,61722.0,61721.0,0.01070594]
[1722699017507,0.03,61717.0,61716.0,0.162032]
[1722699017727,0.03,61717.0,61716.0,0.486097]
[1722699017968,0.011,61720.0,61719.0,0.486073]
[1722699018174,0.007825,61720.0,61719.0,0.810122]
[1722699018396,0.007825,61723.0,61722.0,0.162016]
[1722699018613,0.007825,61723.0,61722.0,0.486049]
[1722699018849,0.007825,61714.0,61713.0,0.486118]
[1722699019125,0.007825,61714.0,61703.0,0.00984303]
[1722699019126,0.01,61707.0,61703.0,0.32413]
[1722699019297,0.017825,61705.0,61704.0,0.486192]
[1722699019499,0.017825,61705.0,61704.0,0.81032]
[1722699019690,0.017825,61705.0,61704.0,0.486192]
[1722699020632,0.017825,61705.0,61703.0,0.324128]
[1722699020633,0.01,61709.0,61708.0,0.48616]